bitfinex/quotes_BTCUSD_20240908
["timestamp","ask_amount","ask_price","bid_price","bid_amount"]
[1725770109015,0.93998274,54570.0,54569.0,0.08446]
[1725770109730,0.92998274,54570.0,54569.0,0.08446]
[1725770109985,0.9527142,54570.0,54569.0,0.08446]
[1725770110432,0.9507142,54570.0,54569.0,0.08446]
[1725770110642,0.9507142,54570.0,54569.0,0.08183]
[1725770110879,0.9527142,54570.0,54569.0,0.08183]
[1725770111110,0.9527142,54570.0,54569.0,0.08446]
[1725770111345,0.9507142,54570.0,54569.0,0.08446]
[1725770111575,0.9537142,54570.0,54569.0,0.08446]
[1725770112724,0.9557142,54570.0,54569.0,0.08446]
[1725770113181,0.9537142,54570.0,54569.0,0.08446]
[1725770114190,0.9545302,54570.0,54569.0,0.08446]
[1725770115529,0.92579874,54570.0,54569.0,0.08446]
[1725770115760,1.18234974,54570.0,54569.0,0.08446]
[1725770118541,1.18234974,54570.0,54569.0,0.00426]
[1725770118774,1.2340817,54570.0,54569.0,0.00163]
[1725770120688,1.2340817,54570.0,54561.0,0.1802]
[1725770120689,1.154646,54562.0,54561.0,0.1802]
[1725770120952,1.154646,54562.0,54561.0,0.0802]
[1725770121189,1.177646,54562.0,54561.0,0.1802]
[1725770121423,1.22556211,54562.0,54561.0,0.1802]
[1725770121899,1.22656211,54562.0,54561.0,0.1802]
[1725770122133,1.22756211,54562.0,54561.0,0.1802]
[1725770122366,1.22656211,54562.0,54561.0,0.0802]
[1725770122827,1.22756211,54562.0,54561.0,0.0802]
[1725770123288,1.22656211,54562.0,54561.0,0.0802]
[1725770123978,1.22556211,54562.0,54561.0,0.0802]
[1725770124675,1.25239715,54562.0,54561.0,0.0802]
[1725770124919,1.25239715,54562.0,54559.0,0.10425]
[1725770124920,1.154668,54561.0,54559.0,0.10425]
[1725770125151,1.177668,54561.0,54559.0,0.10425]
[1725770126538,1.178668,54561.0,54559.0,0.00425]
[1725770126782,1.177668,54561.0,54559.0,0.00425]
[1725770128145,1.179668,54561.0,54559.0,0.00425]
[1725770129451,1.177668,54561.0,54559.0,0.00425]
[1725770129876,1.180668,54561.0,54559.0,0.00425]
[1725770130326,1.177668,54561.0,54559.0,0.00425]
[1725770130795,1.177668,54561.0,54559.0,0.00162]
[1725770130796,1.437261,54561.0,54559.0,0.00162]
[1725770131257,1.434261,54561.0,54559.0,0.00162]
[1725770131484,1.438261,54561.0,54559.0,0.00162]
[1725770131724,1.45325772,54561.0,54559.0,0.00162]
[1725770131952,1.52045772,54561.0,54559.0,0.00162]
[1725770132171,1.51945772,54561.0,54559.0,0.00162]
[1725770132602,1.52045772,54561.0,54559.0,0.00162]
[1725770132822,1.51645772,54561.0,54559.0,0.00162]
[1725770133324,1.52045772,54561.0,54559.0,0.00162]
[1725770133991,1.45425772,54561.0,54559.0,0.00162]
[1725770136193,1.19766472,54561.0,54559.0,0.00162]
[1725770136885,1.19766472,54561.0,54560.0,0.13874]
[1725770138248,1.17466472,54561.0,54560.0,0.13874]
[1725770138484,0.91807172,54561.0,54560.0,0.14137]
[1725770138718,0.91807172,54561.0,54560.0,0.23026094]
[1725770138719,0.66147872,54561.0,54560.0,0.23026094]
[1725770138942,0.69021488,54561.0,54560.0,0.23026094]
[1725770139435,0.68921488,54561.0,54560.0,0.23026094]
[1725770139657,0.68621488,54561.0,54560.0,0.23026094]
[1725770139874,0.68721488,54561.0,54560.0,0.23026094]
[1725770140095,0.68621488,54561.0,54560.0,0.33026094]
[1725770140550,0.42862188,54561.0,54560.0,0.33026094]
[1725770140747,0.42962188,54561.0,54560.0,0.33026094]
[1725770141445,0.42862188,54561.0,54560.0,0.33026094]
[1725770142127,0.42962188,54561.0,54560.0,0.33026094]
[1725770142338,0.68521488,54561.0,54560.0,0.33026094]
[1725770142552,0.42962188,54561.0,54560.0,0.33026094]
[1725770142763,0.43062188,54561.0,54560.0,0.33026094]
[1725770143407,0.42962188,54561.0,54560.0,0.33026094]
[1725770143616,0.43062188,54561.0,54560.0,0.33026094]
[1725770145407,0.40188572,54561.0,54560.0,0.33026094]
[1725770149231,0.65847872,54561.0,54560.0,0.33026094]
[1725770149458,0.65747872,54561.0,54560.0,0.33026094]
[1725770149689,0.65647872,54561.0,54560.0,0.33026094]
[1725770150155,0.39988572,54561.0,54560.0,0.33026094]
[1725770150393,0.40088572,54561.0,54560.0,0.33026094]
[1725770150846,0.65647872,54561.0,54560.0,0.33026094]
[1725770151094,0.65847872,54561.0,54560.0,0.33026094]
[1725770151321,0.65747872,54561.0,54560.0,0.33026094]
[1725770151778,0.65847872,54561.0,54560.0,0.33026094]
[1725770156032,0.40188572,54561.0,54560.0,0.33026094]
[1725770156541,0.65847872,54561.0,54560.0,0.33026094]
[1725770160641,0.65847872,54561.0,54560.0,0.24137]
[1725770161111,0.65847872,54561.0,54560.0,0.33026094]
[1725770161591,0.65747872,54561.0,54560.0,0.33026094]
[1725770162512,0.65847872,54561.0,54560.0,0.33026094]
[1725770165360,0.65747872,54561.0,54560.0,0.33026094]
[1725770165591,0.65847872,54561.0,54560.0,0.33026094]
[1725770166046,0.65747872,54561.0,54560.0,0.33026094]
[1725770166519,0.65847872,54561.0,54560.0,0.33026094]
[1725770167892,0.65747872,54561.0,54560.0,0.33026094]
[1725770168122,0.65847872,54561.0,54560.0,0.33026094]
[1725770168573,0.38907498,54561.0,54560.0,0.33026094]
[1725770168790,0.674403,54561.0,54560.0,0.33026094]
[1725770170451,0.930996,54561.0,54560.0,0.33026094]
[1725770170672,0.674403,54561.0,54560.0,0.24137]
[1725770170900,0.674403,54561.0,54560.0,0.17947]
[1725770171396,0.674403,54561.0,54560.0,0.10427]
[1725770172829,0.674403,54561.0,54560.0,0.00427]
[1725770174862,0.735703,54561.0,54560.0,0.00427]
[1725770175107,0.96356098,54561.0,54560.0,0.00427]
[1725770175336,0.90226098,54561.0,54560.0,0.00427]
[1725770176051,0.90026098,54561.0,54560.0,0.00427]
[1725770176501,0.90126098,54561.0,54560.0,0.00427]
[1725770177439,0.90226098,54561.0,54560.0,0.00427]
[1725770177672,0.90126098,54561.0,54560.0,0.00427]
[1725770177900,0.90026098,54561.0,54560.0,0.00427]
[1725770178150,0.90126098,54561.0,54560.0,0.00427]
[1725770178622,0.92999758,54561.0,54560.0,0.00427]
[1725770180471,0.92899758,54561.0,54560.0,0.00427]
[1725770181160,0.92999758,54561.0,54560.0,0.00427]
[1725770181617,0.92899758,54561.0,54560.0,0.00427]
[1725770182102,0.93199758,54561.0,54560.0,0.00427]
[1725770182566,0.92899758,54561.0,54560.0,0.00427]
[1725770183038,0.93199758,54561.0,54560.0,0.00427]
[1725770185358,0.90326098,54561.0,54560.0,0.00427]
[1725770186053,0.90026098,54561.0,54560.0,0.00427]
[1725770187503,0.90326098,54561.0,54560.0,0.00427]
[1725770187945,0.90026098,54561.0,54560.0,0.00427]
[1725770188857,0.92899761,54561.0,54560.0,0.00427]
[1725770192346,0.92899761,54561.0,54560.0,0.06947]
[1725770193010,0.92899761,54561.0,54560.0,0.15237]
[1725770193249,0.92899761,54561.0,54560.0,0.25237]
[1725770194418,0.92899761,54561.0,54560.0,0.30726083]
[1725770194609,0.67321961,54561.0,54560.0,0.30726083]
[1725770194863,0.67321961,54561.0,54560.0,0.30926083]
[1725770195340,0.67321961,54561.0,54560.0,0.30726083]
[1725770195563,0.64548298,54561.0,54560.0,0.30926083]
[1725770195811,0.64448298,54561.0,54560.0,0.30726083]
[1725770196267,0.64548298,54561.0,54560.0,0.31126083]
[1725770197876,0.64548298,54561.0,54560.0,0.25637]
[1725770198729,0.54373656,54561.0,54560.0,0.25637]
[1725770198941,0.68552104,54561.0,54560.0,0.25637]
[1725770199153,0.68552104,54561.0,54560.0,0.34526094]
[1725770205529,0.65678548,54561.0,54560.0,0.34526094]
[1725770208910,0.68552119,54561.0,54560.0,0.34526094]
[1725770210005,0.68552119,54561.0,54560.0,0.40015488]
[1725770210878,0.68552119,54561.0,54560.0,0.34526094]
[1725770214398,0.68552119,54561.0,54560.0,0.40016781]
[1725770214632,0.68552119,54561.0,54560.0,0.34526094]
[1725770214839,0.68552119,54561.0,54560.0,0.40016781]
[1725770215518,0.65678548,54561.0,54560.0,0.40016781]
[1725770216364,0.65678548,54561.0,54560.0,0.34526094]
[1725770216578,0.65678548,54561.0,54560.0,0.40016267]
[1725770218504,0.65678548,54561.0,54560.0,0.40016275]
[1725770220026,0.68552146,54561.0,54560.0,0.40016275]
[1725770220558,0.68552146,54561.0,54560.0,0.24607181]
[1725770221013,0.68552146,54561.0,54560.0,0.19117]
[1725770221218,0.68552146,54561.0,54560.0,0.24607181]
[1725770221654,0.68552146,54561.0,54560.0,0.19117]
[1725770222307,0.68552146,54561.0,54560.0,0.24607181]
[1725770222523,0.68552146,54561.0,54560.0,0.10827]
[1725770222962,0.67203298,54561.0,54560.0,0.10827]
[1725770223179,0.92862598,54561.0,54560.0,0.10827]
[1725770223398,0.94212232,54561.0,54560.0,0.10827]
[1725770224489,0.94112232,54561.0,54560.0,0.10427]
[1725770224909,0.94112232,54561.0,54560.0,0.10627]
[1725770225344,0.94112232,54561.0,54560.0,0.00427]
[1725770225777,0.94212232,54561.0,54560.0,0.00627]
[1725770226469,0.91338634,54561.0,54560.0,0.00627]
[1725770229822,0.94212285,54561.0,54560.0,0.00627]
[1725770230470,0.68552985,54561.0,54560.0,0.00627]
[1725770230752,0.68552985,54561.0,54560.0,0.06917]
[1725770230997,0.68552985,54561.0,54560.0,0.16917]
[1725770232055,0.68552985,54561.0,54560.0,0.10627]
[1725770232543,0.94212285,54561.0,54560.0,0.00627]
[1725770232782,0.94212285,54561.0,54560.0,0.10627]
[1725770234131,0.94212285,54561.0,54560.0,0.00627]
[1725770235454,0.91338634,54561.0,54560.0,0.00627]
[1725770235672,0.93256667,54561.0,54560.0,0.00627]
[1725770241015,0.61891369,54561.0,54560.0,0.00627]
[1725770241650,0.87550669,54561.0,54560.0,0.00627]
[1725770241904,0.90424309,54561.0,54560.0,0.00627]
[1725770242561,0.90505809,54561.0,54560.0,0.00627]
[1725770243238,0.64846509,54561.0,54560.0,0.00627]
[1725770243734,0.90505809,54561.0,54560.0,0.00627]
[1725770245525,0.87632169,54561.0,54560.0,0.00627]
[1725770248531,0.87532169,54561.0,54560.0,0.00427]
[1725770248737,0.90405817,54561.0,54560.0,0.00427]
[1725770248909,0.90605817,54561.0,54560.0,0.00527]
[1725770253140,0.90405817,54561.0,54560.0,0.00427]
[1725770253626,0.90605817,54561.0,54560.0,0.00527]
[1725770254720,0.90605817,54561.0,54560.0,0.00427]
[1725770255224,0.90405817,54561.0,54560.0,0.00527]
[1725770255440,0.90605817,54561.0,54560.0,0.00527]
[1725770255652,0.87732169,54561.0,54560.0,0.00527]
[1725770258827,0.90605812,54561.0,54560.0,0.00527]
[1725770262181,0.90605812,54561.0,54560.0,0.00264]
[1725770262182,0.8340071,54561.0,54560.0,0.00264]
[1725770262392,0.9623031,54561.0,54560.0,0.00264]
[1725770262858,1.2188961,54561.0,54560.0,0.00264]
[1725770263320,1.2188961,54561.0,54560.0,0.00527]
[1725770263763,0.9623031,54561.0,54560.0,0.00527]
[1725770264427,1.2188961,54561.0,54560.0,0.00527]
[1725770264869,1.2188961,54561.0,54560.0,0.00427]
[1725770265319,1.2178961,54561.0,54560.0,0.00427]
[1725770265522,1.21615967,54561.0,54560.0,0.00427]
[1725770265979,1.21215967,54561.0,54560.0,0.00427]
[1725770266431,1.21515967,54561.0,54560.0,0.00427]
[1725770268858,1.24389645,54561.0,54560.0,0.00427]
[1725770275383,1.21515967,54561.0,54560.0,0.00427]
[1725770284239,1.21515967,54561.0,54560.0,0.00164]
[1725770284240,1.44875267,54561.0,54560.0,0.00164]
[1725770284447,0.898191,54554.0,54553.0,0.07296]
[1725770284937,0.91166832,54554.0,54553.0,0.07296]
[1725770285163,1.16829432,54554.0,54553.0,0.07296]
[1725770285390,1.18747465,54554.0,54553.0,0.07296]
[1725770285838,1.18847465,54554.0,54553.0,0.07496]
[1725770286268,1.18947465,54554.0,54553.0,0.07496]
[1725770287143,0.93284865,54554.0,54553.0,0.07496]
[1725770287348,0.93284865,54554.0,54553.0,0.07296]
[1725770287349,0.93184865,54554.0,54553.0,0.07296]
[1725770287550,0.93284865,54554.0,54553.0,0.07496]
[1725770287764,0.93184865,54554.0,54553.0,0.07496]
[1725770288191,0.96058822,54554.0,54553.0,0.07496]
[1725770288400,0.96058822,54554.0,54553.0,0.00463]
[1725770288610,0.96058822,54554.0,54553.0,0.10463]
[1725770288611,1.21721422,54554.0,54553.0,0.10463]
[1725770288817,1.21721422,54554.0,54553.0,0.00463]
[1725770289494,0.96058822,54554.0,54553.0,0.00463]
[1725770289930,1.21721422,54554.0,54553.0,0.00363]
[1725770290768,1.21721422,54554.0,54553.0,0.00626]
[1725770290986,1.2434232,54554.0,54553.0,0.00626]
[1725770297348,1.2434232,54554.0,54553.0,0.00363]
[1725770297596,1.2664232,54554.0,54553.0,0.00363]
[1725770298459,1.23768363,54554.0,54553.0,0.00363]
[1725770298695,1.26642494,54554.0,54553.0,0.00363]
[1725770302414,1.26723994,54554.0,54553.0,0.00363]
[1725770303484,1.26723994,54554.0,54536.0,0.00263]
[1725770303485,0.128353,54537.0,54536.0,0.00263]
[1725770303698,0.6418,54534.0,54533.0,0.04525]
[1725770303910,0.6418,54534.0,54533.0,0.12525]
[1725770303911,0.89852,54534.0,54533.0,0.12525]
[1725770304366,0.92726964,54534.0,54533.0,0.12525]
[1725770304574,0.89852,54534.0,54533.0,0.12525]
[1725770305631,0.89852,54534.0,54533.0,0.22525]
[1725770306022,0.89952,54534.0,54533.0,0.22725]
[1725770306956,0.90114878,54534.0,54533.0,0.22725]
[1725770307414,1.15786878,54534.0,54533.0,0.22725]
[1725770307655,1.1851076,54534.0,54533.0,0.22725]
[1725770307886,1.21385738,54534.0,54533.0,0.22725]
[1725770308580,1.22640322,54534.0,54533.0,0.22725]
[1725770311673,1.22640322,54534.0,54533.0,0.182]
[1725770311896,1.24940322,54534.0,54533.0,0.082]
[1725770312416,1.12104322,54534.0,54533.0,0.082]
[1725770312651,1.24940322,54534.0,54533.0,0.082]
[1725770313330,1.22640322,54534.0,54533.0,0.082]
[1725770314623,1.22640322,54534.0,54533.0,0.08363]
[1725770317584,0.96968322,54534.0,54533.0,0.08363]
[1725770318030,1.22640322,54534.0,54533.0,0.08363]
[1725770318468,1.19765344,54534.0,54533.0,0.08363]
[1725770321106,1.19665344,54534.0,54533.0,0.08163]
[1725770321523,1.19765344,54534.0,54533.0,0.08163]
[1725770322521,1.19765344,54534.0,54533.0,0.14343]
[1725770322763,1.19765344,54534.0,54533.0,0.24343]
[1725770323602,1.22640269,54534.0,54533.0,0.24343]
[1725770324526,1.19765344,54534.0,54533.0,0.24343]
[1725770327123,1.19846944,54534.0,54533.0,0.24343]
[1725770327528,1.19846944,54534.0,54533.0,0.18163]
[1725770327750,1.22721821,54534.0,54533.0,0.08163]
[1725770327945,1.19846944,54534.0,54533.0,0.08163]
[1725770328789,1.19846944,54534.0,54533.0,0.00163]
[1725770330907,1.26056944,54534.0,54533.0,0.00163]
[1725770331519,1.19846944,54534.0,54533.0,0.00163]
[1725770332122,1.22721972,54534.0,54533.0,0.00163]
[1725770335222,1.22721972,54534.0,54533.0,0.13983]
[1725770335440,1.22721972,54534.0,54533.0,0.23983]
[1725770335669,1.19846944,54534.0,54533.0,0.23983]
[1725770336008,1.19846944,54534.0,54533.0,0.17923]
[1725770336637,1.19846944,54534.0,54533.0,0.07923]
[1725770339042,1.22721939,54534.0,54533.0,0.00163]
[1725770342352,1.22621939,54534.0,54533.0,0.00163]
[1725770343047,0.96949939,54534.0,54533.0,0.13983]
[1725770343258,0.96949939,54534.0,54533.0,0.23983]
[1725770345600,0.94074944,54534.0,54533.0,0.23983]
[1725770347782,0.93280501,54534.0,54533.0,0.23983]
[1725770348874,0.96155473,54534.0,54533.0,0.23983]
[1725770355394,0.93280501,54534.0,54533.0,0.23983]
[1725770355800,0.95198534,54534.0,54533.0,0.23983]
[1725770358779,0.95198534,54534.0,54533.0,0.32791836]
[1725770359406,0.72401437,54534.0,54533.0,0.32791836]
[1725770360326,0.72501437,54534.0,54533.0,0.32991836]
[1725770360790,0.72501437,54534.0,54533.0,0.32791836]
[1725770360791,0.72401437,54534.0,54533.0,0.32791836]
[1725770361030,0.72401437,54534.0,54533.0,0.32991836]
[1725770361257,0.72501437,54534.0,54533.0,0.32991836]
[1725770361478,0.72401437,54534.0,54533.0,0.32791836]
[1725770361922,0.72501437,54534.0,54533.0,0.32991836]
[1725770363218,0.72501437,54534.0,54533.0,0.32990759]
[1725770365387,0.69626534,54534.0,54533.0,0.32990759]
[1725770367776,0.69626534,54534.0,54533.0,0.24183]
[1725770367988,0.95298534,54534.0,54533.0,0.18123]
[1725770368194,0.95298534,54534.0,54533.0,0.26930759]
[1725770369675,0.98173482,54534.0,54533.0,0.26930759]
[1725770370339,0.98173482,54534.0,54533.0,0.26730759]
[1725770370340,0.98073482,54534.0,54533.0,0.26730759]
[1725770370544,0.95298534,54534.0,54533.0,0.26930759]
[1725770372250,0.98173482,54534.0,54533.0,0.26930759]
[1725770372902,0.99125794,54534.0,54533.0,0.26930759]
[1725770376880,0.96250846,54534.0,54533.0,0.26930759]
[1725770377515,0.96150846,54534.0,54533.0,0.26730759]
[1725770377732,0.96250846,54534.0,54533.0,0.26930759]
[1725770380265,0.99125794,54534.0,54533.0,0.26930759]
[1725770380947,0.99125794,54534.0,54533.0,0.19170759]
[1725770381171,0.99125794,54534.0,54533.0,0.09170759]
[1725770382341,1.05385794,54534.0,54533.0,0.00363]
[1725770382565,1.31057794,54534.0,54533.0,0.00363]
[1725770383041,1.28182846,54534.0,54533.0,0.00363]
[1725770385017,1.21922846,54534.0,54533.0,0.00363]
[1725770385458,1.21922846,54534.0,54533.0,0.10363]
[1725770385676,1.28012846,54534.0,54533.0,0.10363]
[1725770385888,1.27912846,54534.0,54533.0,0.10163]
[1725770386272,1.27912846,54534.0,54533.0,0.10363]
[1725770386473,1.27912846,54534.0,54533.0,0.00163]
[1725770386830,1.27912846,54534.0,54533.0,0.10163]
[1725770387469,1.27912846,54534.0,54533.0,0.10363]
[1725770387683,1.27912846,54534.0,54533.0,0.00363]
[1725770389410,1.27912846,54534.0,54533.0,0.00358496]
[1725770393506,1.30787922,54534.0,54533.0,0.00358496]
[1725770395259,1.27912846,54534.0,54533.0,0.00358496]
[1725770396832,1.30787955,54534.0,54533.0,0.00358496]
[1725770398685,1.30879554,54534.0,54533.0,0.00358496]
[1725770399962,1.28004445,54534.0,54533.0,0.00158496]
[1725770400172,1.28104445,54534.0,54533.0,0.00158496]
[1725770400643,1.56076445,54534.0,54533.0,0.00158496]
[1725770401107,1.64176445,54534.0,54533.0,0.00158496]
[1725770401552,1.67051628,54534.0,54533.0,0.00158496]
[1725770403805,1.33279628,54534.0,54533.0,0.00158496]
[1725770404015,1.27189628,54534.0,54533.0,0.00158496]
[1725770405568,1.24314445,54534.0,54533.0,0.00158496]
[1725770405824,1.22014445,54534.0,54533.0,0.00158496]
[1725770408018,1.18789702,54534.0,54533.0,0.00158496]
[1725770408233,1.19801952,54534.0,54533.0,0.00158496]
[1725770408947,1.22677103,54534.0,54533.0,0.00158496]
[1725770409168,1.25328105,54534.0,54533.0,0.00158496]
[1725770410700,0.99656105,54534.0,54533.0,0.14348496]
[1725770415558,0.96780954,54534.0,54533.0,0.14348496]
[1725770418751,0.73983924,54534.0,54533.0,0.24348496]
[1725770419697,0.73883924,54534.0,54533.0,0.24348496]
[1725770419928,0.99555924,54534.0,54533.0,0.24348496]
[1725770420210,0.99655924,54534.0,54533.0,0.24548496]
[1725770420440,0.99555924,54534.0,54533.0,0.33156255]
[1725770420894,0.99655924,54534.0,54533.0,0.33356255]
[1725770421851,0.99655924,54534.0,54533.0,0.24548496]
[1725770422064,0.99655924,54534.0,54533.0,0.33356255]
[1725770425545,0.96780954,54534.0,54533.0,0.33356255]
[1725770428857,0.99655898,54534.0,54533.0,0.33356255]
[1725770432186,0.98826244,54534.0,54533.0,0.33356255]
[1725770435490,0.959513,54534.0,54533.0,0.33356255]
[1725770438719,0.98826236,54534.0,54533.0,0.33356255]
[1725770445609,0.959513,54534.0,54533.0,0.33356255]
[1725770448042,0.958513,54534.0,54533.0,0.33156255]
[1725770448458,0.959513,54534.0,54533.0,0.33356255]
[1725770449518,0.98826241,54534.0,54533.0,0.33356255]
[1725770450806,0.98726241,54534.0,54533.0,0.33156255]
[1725770451242,0.98726241,54534.0,54533.0,0.33356255]
[1725770451243,0.98826241,54534.0,54533.0,0.33356255]
[1725770451458,0.98726241,54534.0,54533.0,0.33156255]
[1725770451677,0.98826241,54534.0,54533.0,0.33356255]
[1725770455432,0.959513,54534.0,54533.0,0.33356255]
[1725770457179,0.959513,54534.0,54533.0,0.38859604]
[1725770458319,0.70065543,54534.0,54533.0,0.38859604]
[1725770458530,0.68930635,54534.0,54533.0,0.38859604]
[1725770458755,0.73149898,54534.0,54533.0,0.38859604]
[1725770459180,0.73149898,54534.0,54533.0,0.33356255]
[1725770459397,0.73149898,54534.0,54533.0,0.3886457]
[1725770459614,0.73149898,54534.0,54533.0,0.38864819]
[1725770461795,0.73149898,54534.0,54533.0,0.3005706]
[1725770462030,0.73149898,54534.0,54533.0,0.38864819]
[1725770463112,0.60313898,54534.0,54533.0,0.33356255]
[1725770463339,0.73149898,54534.0,54533.0,0.33356255]
[1725770465477,0.70274958,54534.0,54533.0,0.33356255]
[1725770470038,0.73149921,54534.0,54533.0,0.33356255]
[1725770470519,0.73149921,54534.0,54533.0,0.24548496]
[1725770470746,0.73149921,54534.0,54533.0,0.26776255]
[1725770470968,0.73149921,54534.0,54533.0,0.17968496]
[1725770471192,0.73149921,54534.0,54533.0,0.07968496]
[1725770471426,0.73149921,54534.0,54533.0,0.00358496]
[1725770473182,0.73149921,54534.0,54533.0,0.05867791]
[1725770473673,0.71805598,54534.0,54533.0,0.05867791]
[1725770473902,0.73155857,54534.0,54533.0,0.05868417]
[1725770475174,0.73155857,54534.0,54533.0,0.14676176]
[1725770475379,0.70280894,54534.0,54533.0,0.24676176]
[1725770476617,0.70280894,54534.0,54533.0,0.24676508]
[1725770477863,0.70280894,54534.0,54533.0,0.19166255]
[1725770478091,0.70280894,54534.0,54533.0,0.25716255]
[1725770480086,0.06324844,54534.0,54533.0,0.33906255]
[1725770480267,0.06324844,54534.0,54533.0,0.82896658]
[1725770480268,0.04974585,54534.0,54533.0,0.82896658]
[1725770480509,0.06324836,54534.0,54533.0,0.82896658]
[1725770482582,0.06324836,54534.0,54533.0,2.07886658]
[1725770485154,0.04974585,54534.0,54533.0,2.10639646]
[1725770485359,0.02099633,54534.0,54533.0,2.10639579]
[1725770485582,0.02099633,54534.0,54533.0,2.10639592]
[1725770485782,0.02099633,54534.0,54533.0,2.10639641]
[1725770486186,0.02099633,54534.0,54533.0,1.00303819]
[1725770486563,0.02099633,54534.0,54533.0,0.87467519]
[1725770486995,0.02099633,54534.0,54533.0,2.38330019]
[1725770487205,0.001816,54534.0,54533.0,2.90675019]
[1725770488133,0.000816,54534.0,54533.0,2.90475019]
[1725770488568,0.001816,54534.0,54533.0,2.90675019]
[1725770489442,0.001816,54534.0,54533.0,3.04421341]
[1725770489698,0.000816,54534.0,54533.0,3.04221341]
[1725770489914,0.000816,54534.0,54533.0,3.04214246]
[1725770490130,0.001816,54534.0,54533.0,3.05414246]
[1725770490779,0.001816,54534.0,54533.0,3.04214246]
[1725770490780,0.000816,54534.0,54533.0,3.04214246]
[1725770491213,0.001816,54534.0,54533.0,3.05614246]
[1725770492566,0.001816,54534.0,54533.0,2.91867978]
[1725770494377,0.02874587,54541.0,54533.0,2.91867978]
[1725770494378,0.02874587,54541.0,54540.0,0.36422359]
[1725770494565,0.02874587,54541.0,54540.0,0.46422359]
[1725770494805,0.04227716,54541.0,54540.0,0.46422359]
[1725770495028,0.02874587,54541.0,54540.0,0.72091559]
[1725770495445,0.01918033,54542.0,54541.0,0.0655]
[1725770495645,0.01918033,54542.0,54541.0,0.1655]
[1725770495862,0.03271162,54542.0,54541.0,0.1655]
[1725770496076,0.01918033,54542.0,54541.0,0.1655]
[1725770496296,0.03271162,54542.0,54541.0,0.1655]
[1725770497155,0.03271162,54542.0,54541.0,0.63283]
[1725770497598,0.02018033,54542.0,54541.0,1.89573]
[1725770498894,0.02099533,54542.0,54541.0,1.89573]
[1725770499769,0.02099533,54542.0,54541.0,1.639043]
[1725770500416,0.02099533,54542.0,54541.0,1.89573]
[1725770503380,0.02099533,54542.0,54541.0,1.95064558]
[1725770504086,0.02099533,54542.0,54541.0,2.152417]
[1725770504409,0.001815,54542.0,54541.0,2.63991799]
[1725770504487,0.001815,54542.0,54541.0,2.55754462]
[1725770504715,0.001815,54542.0,54541.0,2.30085762]
[1725770505360,0.001815,54542.0,54541.0,2.41068878]
[1725770505584,0.001815,54542.0,54541.0,2.42068878]
[1725770506014,0.001815,54542.0,54541.0,2.4206495]
[1725770506848,0.001815,54542.0,54541.0,2.6773365]
[1725770508614,0.001815,54542.0,54541.0,2.56752611]
[1725770509038,0.001815,54542.0,54541.0,2.56952611]
[1725770509253,0.001815,54542.0,54541.0,2.56752611]
[1725770510772,0.001815,54542.0,54541.0,2.7047891]
[1725770511176,0.001815,54542.0,54541.0,2.67729551]
[1725770511386,0.001815,54542.0,54541.0,2.67728635]
[1725770511588,0.55529333,54573.0,54551.0,0.08807759]
[1725770511800,0.15705942,54552.0,54551.0,1.33797759]
[1725770512953,0.15705942,54552.0,54551.0,1.43797759]
[1725770513395,0.15705942,54552.0,54551.0,1.44097759]
[1725770513396,0.41369842,54552.0,54551.0,1.44097759]
[1725770513816,0.42656794,54552.0,54551.0,1.44097759]
[1725770520404,0.39782552,54552.0,54551.0,1.44097759]
[1725770521044,0.14118652,54552.0,54551.0,1.44097759]
[1725770521261,0.14118652,54552.0,54551.0,1.50177759]
[1725770521477,0.14200152,54552.0,54551.0,1.50177759]
[1725770522343,0.01368452,54552.0,54551.0,1.57947759]
[1725770522550,0.01345231,54552.0,54551.0,1.57947759]
[1725770523191,0.01345231,54552.0,54551.0,1.57647759]
[1725770523673,0.01345231,54552.0,54551.0,1.57947759]
[1725770523895,0.01345231,54552.0,54551.0,1.57647759]
[1725770524126,0.01445231,54552.0,54551.0,1.58947759]
[1725770524596,0.01445231,54552.0,54551.0,1.59947759]
[1725770525039,0.001815,54552.0,54551.0,1.59947759]
[1725770525259,0.001815,54552.0,54551.0,1.60147759]
[1725770526414,0.001815,54552.0,54551.0,1.59947759]
[1725770528180,0.001815,54552.0,54551.0,1.65436077]
[1725770528603,0.001815,54552.0,54551.0,1.59947759]
[1725770531785,0.001815,54552.0,54551.0,1.53867759]
[1725770533333,0.01274531,54552.0,54551.0,1.53867759]
[1725770533590,0.01467515,54552.0,54551.0,1.53867759]
[1725770533837,0.14299215,54552.0,54551.0,1.45097759]
[1725770534474,0.14299215,54552.0,54551.0,1.45260759]
[1725770535801,0.39962715,54552.0,54551.0,1.45260759]
[1725770538461,0.39962715,54552.0,54551.0,1.50745047]
[1725770539368,0.14299215,54552.0,54551.0,1.45260759]
[1725770539566,0.14299215,54552.0,54551.0,1.8596691]
[1725770540221,0.01467515,54552.0,54551.0,2.04275486]
[1725770540425,0.01467515,54552.0,54551.0,2.12545486]
[1725770540636,0.01467515,54552.0,54551.0,2.0157691]
[1725770540637,0.001815,54552.0,54551.0,2.0157691]
[1725770541533,0.001815,54552.0,54551.0,2.1528763]
[1725770541742,0.001815,54552.0,54551.0,2.1548763]
[1725770543110,0.02099533,54552.0,54551.0,2.1548763]
[1725770545238,0.02099533,54552.0,54551.0,2.1528763]
[1725770545700,0.02099533,54552.0,54551.0,2.1548763]
[1725770546607,0.02099533,54552.0,54551.0,2.0177691]
[1725770547067,0.02099533,54552.0,54551.0,2.15517253]
[1725770547695,0.02099533,54552.0,54551.0,2.0177691]
[1725770549686,0.03385595,54552.0,54551.0,2.0177691]
[1725770550576,0.03385595,54552.0,54551.0,2.0157691]
[1725770551009,0.03385595,54552.0,54551.0,2.15317037]
[1725770551427,0.02099533,54552.0,54551.0,2.15317037]
[1725770551636,0.02099533,54552.0,54551.0,2.0157691]
[1725770552051,0.03385669,54552.0,54551.0,2.0157691]
[1725770552894,0.03385669,54552.0,54551.0,2.0177691]
[1725770554472,0.03385669,54552.0,54551.0,2.15517956]
[1725770554902,0.02099533,54552.0,54551.0,2.15518347]
[1725770555090,0.02099533,54552.0,54551.0,2.0177691]
[1725770556452,0.03385614,54552.0,54551.0,2.0177691]
[1725770556660,0.02099533,54552.0,54551.0,2.0177691]
[1725770557122,0.03385614,54552.0,54551.0,2.0177691]
[1725770557581,0.02099533,54552.0,54551.0,2.0177691]
[1725770557807,0.03385614,54552.0,54551.0,2.0177691]
[1725770560353,0.02099533,54552.0,54551.0,2.0177691]
[1725770561705,0.02099533,54552.0,54551.0,2.01775098]
[1725770562426,0.02099533,54552.0,54551.0,2.14607098]
[1725770562669,0.02099533,54552.0,54551.0,2.01775098]
[1725770563343,0.02099533,54552.0,54551.0,2.14607098]